Cogmind - Beta 16 @@@ ROGUE MODE // 2025.11.30 @ 18:29:17 Player: unq Result: Destroyed by D-53 Grenadier with Mini Grenade Launcher Performance ------------- Evolutions (0) 0 Regions Visited (2) 400 Robots Destroyed (29) 145 Value Destroyed (366) 366 Prototype IDs (0) 0 Alien Tech Used (0) 0 Bonus (0) 0 TOTAL SCORE: 911 Bonus ------- None Cogmind --------- Core Integrity 0/250 Matter 300/300 Energy 121/125 System Corruption 0% Temperature Cool (2) Movement Treading (160) Location -10/Mines Parts ------- > --- POWER (1) -------- Light Ion Engine > --- PROPULSION (2) --- Light Treads Light Treads > --- UTILITY (2) ------ Large Storage Unit Seismic Detector > --- WEAPON (2) ------- Autogun Autogun > --- INVENTORY (15) --- Ion Engine Light Ion Engine Light Treads Light Treads Seismic Detector Improved Targeting Computer Weapon Shielding Light Armor Plating Medium Laser Autogun Autogun Grenade Launcher Grenade Launcher Datajack Mining Laser Peak State ------------ > --- POWER ------------ Ion Engine > --- PROPULSION ------- Light Treads Light Treads > --- UTILITY ---------- Large Storage Unit Light Armor Plating > --- WEAPON ----------- Autogun Autogun > --- INVENTORY -------- Light Ion Engine Light Treads Light Treads High-capacity Storage Unit Seismic Detector Seismic Detector Weapon Shielding Light Assault Rifle Light Assault Rifle Light Assault Rifle Light Assault Rifle Grenade Launcher Grenade Launcher Datajack Mining Laser [Rating: 10] Favorites ----------- Power Ion Engine Engine Ion Engine Propulsion Light Treads Treads Light Treads Leg Aluminum Leg Utility Large Storage Unit Device Seismic Detector Storage Large Storage Unit Protection Light Armor Plating Weapon Light Assault Rifle Ballistic Gun Light Assault Rifle Special Weapon Mining Laser Build | -11 -10 -10 ------- Run | Yrd Mat Min Slots Evolved . | . . . Power . | . . . Propulsion . | . . . Utility . | . . . Weapon . | . . . Parts Attached 33 | 8 24 1 Power 5 | 1 3 1 Engine 5 | 1 3 1 Core . | . . . Reactor . | . . . Propulsion 6 | 2 4 . Treads 4 | . 4 . Leg 2 | 2 . . Wheel . | . . . Hover . | . . . Flight . | . . . Utility 10 | 3 7 . Device 2 | 2 . . Storage 4 | 1 3 . Processor . | . . . Hackware . | . . . Protection 4 | . 4 . Artifact . | . . . Weapon 12 | 2 10 . Energy Gun . | . . . Energy Cannon . | . . . Ballistic Gun 11 | 2 9 . Ballistic Cannon . | . . . Launcher . | . . . Special Weapon 1 | . 1 . Impact Weapon . | . . . Slashing Weapon . | . . . Piercing Weapon . | . . . Special Melee Weapon . | . . . Unidentified Prototypes . | . . . Parts Lost 3 | . 3 . Power 1 | . 1 . Propulsion 1 | . 1 . Utility 1 | . 1 . Weapon . | . . . Highest Loss Streak 2 | . 2 . To Critical Strikes . | . . . Average Backups 11 | 2 11 14 Power . | . . 1 Propulsion 1 | 1 1 2 Utility 3 | . 4 4 Weapon 5 | 1 5 6 Tool/Special . | . . . Unused Backups 9 | . 2 7 Power . | . . . Propulsion . | . . . Utility 1 | . . 1 Weapon 7 | . 2 5 Tool/Special 1 | . . 1 Average Slot Usage (%) 99 | . 99 100 Engine 13 | . 13 14 Treads 24 | . 23 28 Leg 3 | . 4 . Device 6 | . 6 8 Storage 13 | . 13 14 Protection 7 | . 7 5 Ballistic Gun 27 | . 27 27 Peak Build Rating 10 | 7 10 10 Average Rating 8 | 5 8 9 On Entrance 5 | . 7 9 Avg Prop Armor Cover (%) 10 | . 10 . Naked Turns . | . . . Heaviest Build 48 | 11 48 34 Greatest Support 40 | 20 40 40 Greatest Overweight (x) 1 | . 1 . Average Overweight (x) . | . . . Largest Inventory Capacity 20 | 8 20 15 Average Capacity 13 | 7 13 15 Most Carried 15 | 5 15 15 Average Carried 11 | 3 11 14 Final Capacity 15 | 8 15 15 Final Carried 15 | 5 15 15 Class Distribution -------------------- 58% | Mutant 41% | Scavenger-Mutant Dominant Class ---------------- Mutant | -10/Materials Scavenger-Mutant | -10/Mines Resources | -11 -10 -10 ----------- Run | Yrd Mat Min Matter Collected 930 | 308 429 193 Remotely . | . . . Salvage Created 636 | 131 441 64 Parts 59 | 11 41 7 Haulers Intercepted 2 | . 2 . Recyclers Shooed 1 | 1 . . Parts Field Recycled . | . . . Retrieved Matter . | . . . Parts Self-Destructed . | . . . Prevented . | . . . Parts Restored . | . . . Kills | -11 -10 -10 ------- Run | Yrd Mat Min Combat Hostiles Destroyed 20 | . 14 6 Guns 20 | . 14 6 Classes Destroyed 7 | 2 5 . Worker 1 | . 1 . Tunneler 4 | 4 . . Hauler 2 | . 2 . Recycler 1 | 1 . . Watcher 1 | . 1 . Swarmer 14 | . 9 5 Grunt 5 | . 5 . Best Kill Streak 6 | 3 6 3 Combat Bots Only 6 | . 6 3 Max Kills in Single Turn 1 | 1 1 1 Gunslinging . | . . . Exploded . | . . . Melee . | . . . Uniques/NPCs Destroyed 1 | . . 1 YI-UF0 (-10/Mines) Combat | -11 -10 -10 -------- Run | Yrd Mat Min Hostile Shots Fired 173 | . 141 32 Missed 45 | . 37 8 Hits 128 | . 104 24 Projectile 128 | . 104 24 AOE 6 | . . 6 Damage Taken 1200 | . 879 321 Core 256 | . 201 55 Absorbed by Shields . | . . . Redirected to Shielding 29 | . 29 . Core Remaining (%) 100 | 100 . . Volleys Fired 93 | 14 69 10 Largest 2 | 2 2 2 Hottest 100 | 40 100 46 Shots Fired 184 | 28 136 20 Gun 182 | 28 134 20 Cannon . | . . . Launcher . | . . . Special 2 | . 2 . Kinetic 182 | 28 134 20 Thermal 2 | . 2 . Explosive . | . . . Electromagnetic . | . . . Robot Hit Streak 11 | 10 11 10 Robot Miss Streak 6 | 1 6 2 Penetration Max . | . . . Secondary Targets 3 | . 3 . Max Gunslinging Chain 1 | . 1 . Shots Hit Robots 107 | 20 74 13 Core Hits 48 | 10 32 6 Critical Kills . | . . . Critical Parts Destroyed 1 | . 1 . Critical Strikes 1 | . 1 . Destroy 1 | . 1 . Melee Attacks . | . . . Impact . | . . . Slashing . | . . . Piercing . | . . . Sneak Attacks . | . . . Combat Hostiles . | . . . Follow-up Attacks . | . . . Damage Inflicted 1053 | 179 671 203 Guns 1039 | 179 657 203 Cannons . | . . . Explosions . | . . . Melee . | . . . Ramming 14 | . 14 . Kinetic 1039 | 179 657 203 Thermal . | . . . Explosive . | . . . Electromagnetic . | . . . Impact . | . . . Slashing . | . . . Piercing . | . . . Highest Corruption . | . . . Average Corruption . | . . . Corruption Purged . | . . . Corruption Blocked . | . . . Overload Shots . | . . . Overflow Damage . | . . . Projectiles . | . . . Explosions . | . . . Melee . | . . . Knockbacks . | . . . Impact . | . . . Kinetic . | . . . Secondary . | . . . Self-Inflicted Damage . | . . . Shots . | . . . Rammed 2 | . 2 . Targets Rammed 4 | . 4 . Kicked 1 | . 1 . Crushed 1 | . 1 . Highest Temperature 56 | . 56 24 Average Temperature 12 | . 12 11 Received Heat Transfer 114 | . 114 . Siege Activations . | . . . Martial Activations . | . . . Shielding Activations . | . . . Robots Disrupted . | . . . Combat Hostiles . | . . . Robots Corrupted . | . . . Combat Hostiles . | . . . Parts Fried . | . . . Impact Corruptions . | . . . Robots Melted . | . . . Combat Hostiles . | . . . Parts Melted . | . . . Heat Transferred . | . . . Parts Sabotaged . | . . . Parts Stolen . | . . . Parts Stripped . | . . . Power Chain Reactions . | . . . Alert | -11 -10 -10 ------- Run | Yrd Mat Min Maximum Alert Level . | . . . Low Security (%) 100 | 100 100 100 Level 1 . | . . . Level 2 . | . . . Level 3 . | . . . Level 4 . | . . . Level 5 . | . . . High Security . | . . . Max Security . | . . . Peak Influence 120 | 10 120 87 Initial 22 | . . 22 Average 45 | 1 56 31 Influence Increases 665 | 25 495 145 Destroy 0b10 Robot/C 380 | . 280 100 Destroy 0b10 Robot/NC 45 | 25 20 . Destroy Leader 96 | . 76 20 Trap Triggered on 0b10 10 | . . 10 Successful Hack 12 | . 12 . Select Force Hacks 30 | . 30 . Destroy Structure 2 | . 2 . Lose Combat Pursuer 90 | . 75 15 Influence Decreases 665 | 25 437 203 Entered New Map 36 | . . 36 Time Decay 599 | 25 407 167 Lost Part 30 | . 30 . Squads Dispatched 5 | . 5 . Investigation 2 | . 2 . Extermination . | . . . Reinforcement 3 | . 3 . Assault . | . . . Garrison . | . . . Intercept . | . . . Searches Triggered . | . . . Construction Impeded . | . . . Haulers Reinforced . | . . . Active Scanning Responses . | . . . Cargo Convoy Interrupts . | . . . Stealth | -11 -10 -10 --------- Run | Yrd Mat Min Distress Signals 3 | . 3 . Communications Jammed . | . . . Distress Signals . | . . . Times Spotted 37 | . 29 8 Peak Tracking Total 7 | . 7 3 Tactical Retreats 6 | . 5 1 Traps | -11 -10 -10 ------- Run | Yrd Mat Min Traps Triggered 1 | . 1 . Indirectly . | . . . Trap Hack Attempts . | . . . Triggered . | . . . Disarmed . | . . . Reprogrammed . | . . . Reused 1 | . . 1 Traps Extracted . | . . . Installed 3 | . . 3 Triggered 1 | . . 1 Most Traps Carried 1 | . . 1 Machines | -11 -10 -10 ---------- Run | Yrd Mat Min Machines Disabled . | . . . Max in Single Turn . | . . . Machines Repaired . | . . . Machines Dismantled . | . . . Machines Sabotaged . | . . . Overloaded Fab Kills . | . . . Hacking | -11 -10 -10 --------- Run | Yrd Mat Min Machines Accessed 7 | . 7 . Terminals 5 | . 5 . Fabricators . | . . . Repair Stations . | . . . Recycling Units 2 | . 2 . Scanalyzers . | . . . Garrison Access . | . . . Total Hacks 18 | . 18 . Successful 13 | . 13 . Failed 5 | . 5 . Catastrophic . | . . . Database Lockouts . | . . . Manual 10 | . 10 . Terminals 15 | . 15 . Fabricators . | . . . Repair Stations . | . . . Recycling Units 3 | . 3 . Scanalyzers . | . . . Garrison Access . | . . . Terminal Hacks 4 | . 4 . Terminal Index 1 | . 1 . Locate Traps 3 | . 3 . Fabricator Hacks . | . . . Repair Station Hacks . | . . . Recycling Unit Hacks 2 | . 2 . Retrieve Components 2 | . 2 . Scanalyzer . | . . . Garrison Access Hacks . | . . . Unauthorized Hacks 7 | . 7 . Terminals 6 | . 6 . Botnet 1 | . 1 . Skim 5 | . 5 . Fabricators . | . . . Repair Stations . | . . . Recycling Units 1 | . 1 . Tunnel 1 | . 1 . Scanalyzers . | . . . Garrison Access . | . . . Data Cores Recovered . | . . . Used . | . . . Hacking Detections 5 | . 5 . Full Trace Events . | . . . Feedback Events . | . . . Feedback Blocked . | . . . Robot Schematics Acquired . | . . . Robots Built . | . . . Authchips . | . . . Time . | . . . Total Robot Build Rating . | . . . Part Schematics Acquired . | . . . Parts Built . | . . . Authchips . | . . . Time . | . . . Total Part Build Rating . | . . . Part Studies Acquired . | . . . Parts Repaired . | . . . Time . | . . . Parts Recycled . | . . . Recycled Matter . | . . . Retrieved Matter . | . . . Retrieved Components 6 | . 6 . Parts Scanalyzed . | . . . Part Schematics Acquired . | . . . Parts Damaged . | . . . Bothacking | -11 -10 -10 ------------ Run | Yrd Mat Min Used RIF Installer . | . . . Robots Hacked . | . . . Non-combat . | . . . Combat . | . . . Robot Hacks Applied . | . . . Relay Couplers Released . | . . . Fabnet Peak Effective % . | . . . Robots Rewired . | . . . Allies Hacked . | . . . Hacks Repelled . | . . . Allies | -11 -10 -10 -------- Run | Yrd Mat Min Total Allies 1 | . . 1 Largest Group 1 | . . 1 Highest-Rated Group 31 | . . 31 Highest-Rated Ally 31 | . . 31 Total Orders . | . . . Ally Attacks 3 | . . 3 Total Damage . | . . . Kills . | . . . Allies Corrupted . | . . . Allies Melted . | . . . Intel | -11 -10 -10 ------- Run | Yrd Mat Min Active Infowar (turns) 909 | 74 549 286 Seismic 909 | 74 549 286 Robot Analysis Total . | . . . Derelict Logs Recovered . | . . . Drone Launches . | . . . Drone Recoveries . | . . . Exploration | -11 -10 -10 ------------- Run | Yrd Mat Min Turns Passed 1911 | 163 1256 492 Spaces Moved 982 | 96 606 280 Core 6 | 6 . . Treads 770 | . 490 280 Legs 206 | 90 116 . Wheels . | . . . Hover . | . . . Flight . | . . . Fastest Speed 50 | 50 120 160 Average Speed 154 | 115 158 160 Slowest Speed 240 | 120 240 160 Overloaded Moves . | . . . Propulsion Burnouts . | . . . Robots Hopped . | . . . Potential Cave-ins . | . . . Cave-ins Triggered . | . . . Exploration Rate (%) 51 | 4 95 55 Regions Visited 2 Branch Regions 1 Pre-discovered Areas 2 | . 2 . Known Exits Taken . | . . . Unknown Exits Taken 2 | 1 1 . Scrap Searched . | . . . Spaces Dug 2 | . 2 . Terrain Destroyed 2 | . 2 . Melee . | . . . Projectile 2 | . 2 . AOE . | . . . Terrain Rammed . | . . . Walls Destroyed . | . . . Machines Disabled . | . . . Actions | -11 -10 -10 --------- Run | Yrd Mat Min Total 1220 | 122 789 309 Wait 43 | . 37 6 Move 980 | 95 605 280 Hop . | . . . Pick Up 24 | 4 18 2 Fast Attach 12 | 8 3 1 Attach 3 | . 3 . Detach 4 | 1 2 1 Swap 32 | . 29 3 Drop 22 | . 19 3 Fire 93 | 14 69 10 Melee . | . . . Ram . | . . . Kick 1 | . 1 . Crush 3 | . 3 . Escape Stasis . | . . . Rewire . | . . . Trap 3 | . . 3 Miscellaneous . | . . . Route ------- -11/Scrapyard -10/Materials (discovered 4 exits: *Mat x3 / [*Min]) -10/Mines (discovered 4 exits: *Mat x2 / Exi / [*Sub]) History --------- Turn | Location | Event 3 | -11/Scrapyard | Discovered new exit (range 15) 164 | -11/Scrapyard | Entered Materials 303 | -10/Materials | Build established: Mutant 493 | -10/Materials | Discovered new exit (range 16) 687 | -10/Materials | Build established: Scavenger-Mutant 733 | -10/Materials | Core integrity fell below 50% 837 | -10/Materials | Discovered new exit (range 13) 930 | -10/Materials | Discovered new exit (range 16) 963 | -10/Materials | Discovered new exit (range 15) 994 | -10/Materials | Learned location of 1 exit from Storage 1046 | -10/Materials | Learned location of Mines (-10) 1117 | -10/Materials | Learned 2 Storage zone layouts 1162 | -10/Materials | Learned location of 2 exits from Mines 1198 | -10/Materials | Learned Storage trap positions 1217 | -10/Materials | Core integrity fell below 20% 1420 | -10/Materials | Entered Mines 1421 | -10/Mines | Assembled infested the area 1421 | -10/Mines | Identified exit to Exiles 1421 | -10/Mines | Identified exit to Materials 1478 | -10/Mines | Discovered exit to Materials (range 4) 1544 | -10/Mines | Found a hidden stash of uninstalled traps 1605 | -10/Mines | Destroyed YI-UF0 1673 | -10/Mines | Escorted by a lone wolf Derelict 1781 | -10/Mines | Discovered new exit (range 6) 1840 | -10/Mines | Found a Scrap Suit stashed away for nefarious purposes 1912 | -10/Mines | Destroyed by D-53 Grenadier with Mini Grenade Launcher Last Messages --------------- 01751_ A message is triggered: "If you're looking for Megawrench, sorry but we're not in our cave right now, after essentially being evicted by all these Unaware tunnelers." 01754_ "Blame H1-IDC, who apparently didn't care about the consequences of repeatedly making a mess in Materials. Shooting at robots and generally destroying stuff raised the alert level high enough to trigger assault squads over in the main complex, and they later decided the best way to defend their interests would be to start expanding in this direction." 01781_ EXIT=FOUND 01840_ A message is left with an item here: "H4-X0R! I managed to smuggle one out! Take this to the hideout, the fools near Old Recycling think they can use this tech to beat 0b10 one day, and now we just have to find a way to safely deliver this to MAIN.C to get on their good side and convince them to let us into the system." 01874_ The unstable cave ceiling collapses. 01875_ GA-JLN(g) suffers critical hit (Destroy). 01875_ GA-JLN(g): "Mission, incomplete...*fzzt*" 01875_ GA-JLN(g) destroyed. 01908_ K-01 Serf collects debris. Map ----- +----------------------------------------------------+ | ?????????????????????????????????????????? | | ?????????????????????????????????????????? | | ?????????????????????????????????????????? | | ?????????????????????????????????????????? | | ?????????????????? ??????????????????????? | | ?????????????????? ??????????????????????? | | ?????????????????? ??????????????????????? | | ?????????????????# ??????????????????????? | | ?????????????????# ??????????????????????? | | ?????????????????# #?????????????###?????? | | ???????????????### #????????????? #?????# | | ???????????????# ##????????????# #???### | | ???????????????# ##???????????# #??## | | ???????????????# k #########??## #### | | ???????????????# #### ## | | ??????????????## ## ## | | ?????????????## #?# ###? | | ?????????????# ### ##??? | | ?????????????# ### ###???? | | ?????????##### d ##?????? | | ?????##### ##????## | | ????##!]# ####### #???## | | ????#"!! # #?????### #??## | | ????? ! # #???????## #?## | | ?????? $ [%= # #????????## #### | | ???????[ #@#?????????## #### | | ????????# # #??????????# ### | | ?????????# # #??##??????## ## | | ?????????# #?# #?? ##??????## ### ### | | ?????????## ##?# ### #??????# ### ## | | ??????????# #?## ## #??????# #?# ## | | ??????????# ### #??????# #?# | | ??????????# ## #?????#< ####### | | ??????????# #?????## ## ## | | ??????????###### ! #??????###### ## | | ???????????????## #?????????#### | | ????????????????## ##?????????# [ * | | ?????????????????## ##????????# | | ??????????????????####????????# [ | | ??????????????????????????????# | | ??????????????????????????????## ## | | ???????????????????????????????# ###?? | | ???????????????????????????????######????? | | | | | | | | | | | | | | | +----------------------------------------------------+ Best States ------------- Heat Dissipation 25 Energy Generation 10 Energy Capacity 250 Matter Stores 300 Matter Capacity 300 Sight Range 16 Terrain Scan Density 10 Armor Coverage 150 Weapon Shielding 33 Evasion (%) 55 Recoil Reduction 2 Item Schematics ----------------- None Robot Schematics ------------------ None Fabricated ------------ Nothing Repaired ---------- Nothing Studied --------- None Alien Tech Used ----------------- None Achievements -------------- None Challenges ------------ None Game ------ Seed ShiftReactivePick Manual? 0 Play Time 00:19:57 Cumulative 223.0 hours Start 2025.11.30 @ 18:09:55 End 2025.11.30 @ 18:29:17 Sessions 1 Manual Loads 0 Difficulty Rogue Special Mode None Game No. 74 Rogue 74 Adventurer 0 Explorer 0 Win Type - Total 1 Types 1/0/0/0/0/0/0/0/0/0 Lore% 53 Gallery% 51 Achievement% 40 Wizard Run 0 Options --------- Layout 0 ASCII 1 Keyboard 1 Movement Arrows Keybinds 0 Fullscreen 1 Font 28/Smallcaps Map View 72x54 Zoom Use 0% Tactical HUD 1 Map Filters NONE Filters NONE Steam 1 RUN: e22b3b1d-e22e-4842-b45a-04f70d80adfe